[Event "NJSK 2022 Meisjes C"]
[Site "Almelo, Netherlands"]
[Date "2022.05.06"]
[Round "6.7"]
[White "Koorevaar, Sarah-Joy"]
[Black "De Bruijne, Marlies"]
[Result "1-0"]
[TimeControl "90min/40moves + 30min + 30sec/move"]
[WhiteElo "849"]
[BlackElo "858"]

1. d4 {[%clk 01:30:58]} Nf6 {[%clk 01:30:45]} {[%emt 00:00:16]} 2. c4 {[%clk
01:31:22]} {[%emt 00:00:08]} e6 {[%clk 01:30:22]} {[%emt 00:00:52]} 3. Nc3
{[%clk 01:31:22]} {[%emt 00:00:30]} d5 {[%clk 01:30:18]} {[%emt 00:00:34]} 4.
Nf3 {[%clk 01:31:34]} {[%emt 00:00:17]} dxc4 {[%clk 01:29:16]} {[%emt
00:01:32]} 5. e4 {[%clk 01:31:03]} {[%emt 00:01:00]} Bb4 {[%clk 01:27:56]}
{[%emt 00:01:50]} 6. Bg5 {[%clk 01:31:13]} {[%emt 00:00:21]} h6 {[%clk
01:26:25]} {[%emt 00:02:01]} 7. Bxf6 {[%clk 01:30:58]} {[%emt 00:00:45]} gxf6
{[%clk 01:26:00]} {[%emt 00:00:55]} 8. Bxc4 {[%clk 01:31:14]} {[%emt 00:00:14]}
Bd7 {[%clk 01:20:09]} {[%emt 00:06:21]} 9. O-O {[%clk 01:31:00]} {[%emt
00:00:43]} Bxc3 {[%clk 01:20:14]} {[%emt 00:00:27]} 10. bxc3 {[%clk 01:31:23]}
{[%emt 00:00:07]} Qe7 {[%clk 01:19:49]} {[%emt 00:00:54]} 11. d5 {[%clk
01:30:57]} {[%emt 00:00:54]} a6 {[%clk 01:17:31]} {[%emt 00:02:50]} 12. Re1
{[%clk 01:31:00]} {[%emt 00:00:27]} e5 {[%clk 01:13:38]} {[%emt 00:04:24]} 13.
Nh4 {[%clk 01:28:29]} {[%emt 00:02:59]} Qc5 {[%clk 01:09:20]} {[%emt 00:04:48]}
14. Qd3 {[%clk 01:27:29]} {[%emt 00:01:29]} Bb5 {[%clk 01:08:28]} {[%emt
00:01:25]} 15. Bxb5+ {[%clk 01:27:28]} {[%emt 00:00:30]} Qxb5 {[%clk 01:07:53]}
{[%emt 00:01:05]} 16. Qxb5+ {[%clk 01:27:14]} {[%emt 00:00:44]} axb5 {[%clk
01:08:14]} {[%emt 00:00:09]} 17. Red1 {[%clk 01:27:27]} {[%emt 00:00:16]} Nd7
{[%clk 01:06:59]} {[%emt 00:01:46]} 18. a3 {[%clk 01:26:17]} {[%emt 00:01:40]}
O-O-O {[%clk 01:04:47]} {[%emt 00:02:41]} 19. Nf5 {[%clk 01:25:06]} {[%emt
00:01:41]} Kb8 {[%clk 01:00:45]} {[%emt 00:04:33]} 20. Rab1 {[%clk 01:25:04]}
{[%emt 00:00:32]} Nc5 {[%clk 00:57:43]} {[%emt 00:03:32]} 21. f3 {[%clk
01:22:23]} {[%emt 00:03:10]} Na4 {[%clk 00:54:42]} {[%emt 00:03:32]} 22. Rdc1
{[%clk 01:21:56]} {[%emt 00:00:57]} c6 {[%clk 00:54:20]} {[%emt 00:00:52]} 23.
dxc6 {[%clk 01:21:52]} {[%emt 00:00:34]} bxc6 {[%clk 00:54:21]} {[%emt
00:00:28]} 24. c4 {[%clk 01:22:18]} {[%emt 00:00:04]} h5 {[%clk 00:50:07]}
{[%emt 00:04:45]} 25. cxb5 {[%clk 01:22:33]} {[%emt 00:00:15]} Nb6 {[%clk
00:45:33]} {[%emt 00:05:04]} 26. bxc6 {[%clk 01:22:49]} {[%emt 00:00:13]} Kc7
{[%clk 00:45:13]} {[%emt 00:00:51]} 27. a4 {[%clk 01:22:45]} {[%emt 00:00:35]}
Rb8 {[%clk 00:43:54]} {[%emt 00:01:48]} 28. a5 {[%clk 01:21:32]} {[%emt
00:01:43]} Na4 {[%clk 00:42:27]} {[%emt 00:01:57]} 29. Rxb8 {[%clk 01:21:12]}
{[%emt 00:00:49]} Rxb8 {[%clk 00:42:38]} {[%emt 00:00:19]} 30. Ng7 {[%clk
01:20:15]} {[%emt 00:01:27]} Rh8 {[%clk 00:41:29]} {[%emt 00:01:40]} 31. a6
{[%clk 01:20:30]} {[%emt 00:00:15]} Nb6 {[%clk 00:41:02]} {[%emt 00:00:57]} 32.
Nf5 {[%clk 01:20:33]} {[%emt 00:00:26]} Ra8 {[%clk 00:40:49]} {[%emt 00:00:44]}
33. Ng7 {[%clk 01:17:39]} {[%emt 00:03:24]} Rxa6 {[%clk 00:39:59]} {[%emt
00:01:20]} 34. Ne8+ {[%clk 01:18:00]} {[%emt 00:00:08]} Kb8 {[%clk 00:38:32]}
{[%emt 00:01:58]} 35. c7+ {[%clk 01:17:40]} {[%emt 00:00:50]} Kb7 {[%clk
00:37:58]} {[%emt 00:01:04]} 36. Nd6+ {[%clk 01:17:53]} {[%emt 00:00:17]} Ka7
{[%clk 00:36:12]} {[%emt 00:02:16]} 37. c8=Q {[%clk 01:18:10]} {[%emt
00:00:14]} Nxc8 {[%clk 00:36:30]} {[%emt 00:00:11]} 38. Nxc8+ {[%clk 01:18:33]}
{[%emt 00:00:07]} Kb7 {[%clk 00:36:35]} {[%emt 00:00:25]} 39. Ne7 {[%clk
01:18:46]} {[%emt 00:00:16]} Re6 {[%clk 00:36:03]} {[%emt 00:01:02]} 40. Nd5
{[%clk 01:18:34]} {[%emt 00:00:42]} Rd6 {[%clk 00:35:29]} {[%emt 00:01:04]} 41.
Rc7+ {[%clk 01:18:36]} {[%emt 00:00:28]} Kb8 {[%clk 00:35:04]} {[%emt
00:00:55]} 42. Rxf7 {[%clk 01:18:56]} {[%emt 00:00:11]} Rc6 {[%clk 00:35:00]}
{[%emt 00:00:34]} 43. Rxf6 {[%clk 01:18:41]} {[%emt 00:00:44]} Rc1+ {[%clk
00:35:09]} {[%emt 00:00:22]} 44. Kf2 {[%clk 01:19:00]} {[%emt 00:00:10]} h4
{[%clk 00:35:19]} {[%emt 00:00:20]} 45. Ne3 {[%clk 01:18:56]} {[%emt 00:00:35]}
Ra1 {[%clk 00:35:05]} {[%emt 00:00:44]} 46. Rb6+ {[%clk 01:17:57]} {[%emt
00:01:28]} Ka7 {[%clk 00:34:41]} {[%emt 00:00:55]} 47. Rb2 {[%clk 01:18:10]}
{[%emt 00:00:14]} Ka6 {[%clk 00:34:02]} {[%emt 00:01:12]} 48. h3 {[%clk
01:17:29]} {[%emt 00:01:11]} Ka5 {[%clk 00:34:19]} {[%emt 00:00:13]} 49. Nc4+
{[%clk 01:17:42]} {[%emt 00:00:17]} Ka4 {[%clk 00:34:37]} {[%emt 00:00:12]} 50.
Nxe5 {[%clk 01:18:04]} {[%emt 00:00:08]} Rc1 {[%clk 00:34:39]} {[%emt
00:00:28]} 51. Ng6 {[%clk 01:18:01]} {[%emt 00:00:33]} Ka3 {[%clk 00:34:53]}
{[%emt 00:00:15]} 52. Re2 {[%clk 01:18:24]} {[%emt 00:00:08]} Kb3 {[%clk
00:35:12]} {[%emt 00:00:10]} 53. Nxh4 {[%clk 01:18:30]} {[%emt 00:00:25]} Kc4
{[%clk 00:35:28]} {[%emt 00:00:14]} 54. g4 {[%clk 01:18:42]} {[%emt 00:00:18]}
Kd4 {[%clk 00:35:38]} {[%emt 00:00:20]} 55. f4 {[%clk 01:18:34]} {[%emt
00:00:38]} Rc3 {[%clk 00:35:56]} {[%emt 00:00:11]} 56. Nf5+ {[%clk 01:18:06]}
{[%emt 00:00:57]} Kc5 {[%clk 00:35:44]} {[%emt 00:00:43]} 57. e5 {[%clk
01:17:25]} {[%emt 00:01:11]} Rxh3 {[%clk 00:36:01]} {[%emt 00:00:13]} 58. e6
{[%clk 01:17:38]} {[%emt 00:00:17]} Rh2+ {[%clk 00:36:17]} {[%emt 00:00:14]} 59.
Kf3 {[%clk 01:17:50]} {[%emt 00:00:18]} Rh3+ {[%clk 00:36:38]} {[%emt
00:00:09]} 60. Kg2 {[%clk 01:18:05]} {[%emt 00:00:14]} Ra3 {[%clk 00:36:37]}
{[%emt 00:00:33]} 61. e7 {[%clk 01:18:16]} {[%emt 00:00:19]} Ra4 {[%clk
00:36:40]} {[%emt 00:00:26]} 62. e8=Q {[%emt 00:00:17]} Rxf4 {[%clk 00:37:01]}
{[%emt 00:00:08]} 63. Qe5+ {[%clk 01:18:52]} {[%emt 00:00:08]} Kc6 {[%clk
00:37:09]} {[%emt 00:00:22]} 64. Qxf4 {[%clk 01:19:11]} {[%emt 00:00:12]} Kd5
{[%clk 00:37:26]} {[%emt 00:00:13]} 65. Qd4+ {[%clk 01:19:17]} {[%emt
00:00:23]} Kc6 {[%clk 00:37:48]} {[%emt 00:00:09]} 66. Rc2+ {[%clk 01:19:31]}
{[%emt 00:00:15]} Kb5 {[%clk 00:38:11]} {[%emt 00:00:09]} 67. Qc4+ {[%clk
01:19:30]} {[%emt 00:00:30]} Ka5 {[%clk 00:38:27]} {[%emt 00:00:14]} 68. Qb3
{[%clk 01:19:35]} {[%emt 00:00:24]} Ka6 {[%clk 00:38:51]} {[%emt 00:00:07]} 69.
Ra2# {[%clk 01:19:58]} {[%emt 00:00:07]} 1-0

[Event "NJSK 2022 Meisjes C"]
[Site "Almelo, Netherlands"]
[Date "2022.05.06"]
[Round "6.8"]
[White "Jonkman, Sophia"]
[Black "Yildirim, Azra"]
[Result "1/2-1/2"]
[TimeControl "90min/40moves + 30min + 30sec/move"]
[WhiteElo "1417"]
[BlackElo "985"]

1. d4 {[%clk 01:30:58]} d5 {[%clk 01:27:41]} {[%emt 00:03:19]} 2. c4 {[%clk
01:31:22]} {[%emt 00:00:06]} Bf5 {[%clk 01:25:40]} {[%emt 00:02:31]} 3. Nc3
{[%clk 01:29:47]} {[%emt 00:02:06]} e6 {[%clk 01:23:23]} {[%emt 00:02:46]} 4.
Nf3 {[%clk 01:26:42]} {[%emt 00:03:35]} Nc6 {[%clk 01:20:36]} {[%emt 00:03:17]}
5. b3 {[%clk 01:23:40]} {[%emt 00:03:32]} h6 {[%clk 01:17:35]} {[%emt
00:03:32]} 6. Bb2 {[%clk 01:20:46]} {[%emt 00:03:24]} Nf6 {[%clk 01:15:50]}
{[%emt 00:02:15]} 7. g3 {[%clk 01:17:04]} {[%emt 00:04:11]} Nb4 {[%clk
01:13:27]} {[%emt 00:02:53]} 8. Rc1 {[%clk 01:13:11]} {[%emt 00:04:23]} c6
{[%clk 01:11:28]} {[%emt 00:02:29]} 9. a3 {[%clk 01:12:31]} {[%emt 00:01:11]}
Na6 {[%clk 01:07:45]} {[%emt 00:04:13]} 10. cxd5 {[%clk 01:10:08]} {[%emt
00:02:52]} Nxd5 {[%clk 01:05:04]} {[%emt 00:03:11]} 11. Nxd5 {[%clk 01:06:25]}
{[%emt 00:04:13]} Qxd5 {[%clk 01:03:48]} {[%emt 00:01:45]} 12. Bg2 {[%clk
01:04:14]} {[%emt 00:02:42]} Bxa3 {[%clk 00:59:45]} {[%emt 00:04:33]} 13. Nh4
{[%clk 00:28:30]} {[%emt 00:36:14]} Qa5+ {[%clk 00:56:42]} {[%emt 00:03:32]} 14.
Bc3 {[%clk 00:26:08]} {[%emt 00:02:53]} Bb4 {[%clk 00:45:12]} {[%emt 00:11:59]}
15. Qd2 {[%clk 00:21:03]} {[%emt 00:05:36]} O-O-O {[%clk 00:41:13]} {[%emt
00:04:29]} 16. e3 {[%clk 00:13:25]} {[%emt 00:08:08]} Nc5 {[%clk 00:38:10]}
{[%emt 00:03:33]} 17. Nxf5 {[%clk 00:12:16]} {[%emt 00:01:38]} exf5 {[%clk
00:35:52]} {[%emt 00:02:48]} 18. Bxb4 {[%clk 00:10:25]} {[%emt 00:02:22]} Qxb4
{[%clk 00:35:57]} {[%emt 00:00:25]} 19. Rxc5 {[%clk 00:10:22]} {[%emt
00:00:33]} Qxc5 {[%clk 00:34:51]} {[%emt 00:01:35]} 20. dxc5 {[%clk 00:10:23]}
{[%emt 00:00:29]} Rxd2 {[%clk 00:35:06]} {[%emt 00:00:15]} 21. Kxd2 {[%clk
00:10:31]} {[%emt 00:00:22]} Kc7 {[%clk 00:33:01]} {[%emt 00:02:36]} 22. Kc3
{[%clk 00:09:16]} {[%emt 00:01:45]} b6 {[%clk 00:31:19]} {[%emt 00:02:12]} 23.
b4 {[%clk 00:09:01]} {[%emt 00:00:44]} Ra8 {[%clk 00:30:17]} {[%emt 00:01:32]}
24. Ra1 {[%clk 00:05:35]} {[%emt 00:03:57]} a5 {[%clk 00:27:06]} {[%emt
00:03:41]} 25. cxb6+ {[%clk 00:04:44]} {[%emt 00:01:21]} Kxb6 {[%clk 00:27:02]}
{[%emt 00:00:34]} 26. bxa5+ {[%clk 00:04:58]} {[%emt 00:00:16]} Kb5 {[%clk
00:26:21]} {[%emt 00:01:12]} 27. a6 {[%clk 00:02:51]} {[%emt 00:02:36]} Ra7
{[%clk 00:25:39]} {[%emt 00:01:12]} 28. h3 {[%clk 00:02:42]} {[%emt 00:00:39]}
g5 {[%clk 00:25:11]} {[%emt 00:00:57]} 29. Rb1+ {[%clk 00:01:18]} {[%emt
00:01:55]} Kxa6 {[%clk 00:22:15]} {[%emt 00:03:26]} 30. Ra1+ {[%clk 00:01:16]}
{[%emt 00:00:32]} Kb6 {[%clk 00:22:36]} {[%emt 00:00:09]} 31. Rxa7 {[%clk
00:01:40]} {[%emt 00:00:06]} Kxa7 {[%clk 00:22:47]} {[%emt 00:00:18]} 32. Bxc6
{[%clk 00:02:05]} {[%emt 00:00:05]} f4 {[%clk 00:22:24]} {[%emt 00:00:54]} 33.
e4 {[%clk 00:01:27]} {[%emt 00:01:08]} f6 {[%clk 00:22:31]} {[%emt 00:00:23]}
34. Kd4 {[%clk 00:01:13]} {[%emt 00:00:44]} Kb6 {[%clk 00:21:44]} {[%emt
00:01:17]} 35. Kd5 {[%clk 00:01:09]} {[%emt 00:00:34]} fxg3 {[%clk 00:21:37]}
{[%emt 00:00:36]} 36. fxg3 {[%clk 00:01:30]} {[%emt 00:00:10]} h5 {[%clk
00:21:31]} {[%emt 00:00:36]} 37. e5 {[%clk 00:01:03]} {[%emt 00:00:57]} fxe5
{[%clk 00:21:18]} {[%emt 00:00:43]} 38. Kxe5 {[%clk 00:01:26]} {[%emt
00:00:06]} Kxc6 {[%clk 00:21:43]} {[%emt 00:00:06]} 39. Kf5 {[%clk 00:01:33]}
{[%emt 00:00:23]} h4 {[%clk 00:21:45]} {[%emt 00:00:28]} 40. gxh4 {[%clk
00:01:47]} {[%emt 00:00:17]} gxh4 {[%clk 00:22:10]} {[%emt 00:00:04]} 41. Kg5
{[%clk 00:02:03]} {[%emt 00:00:13]} Kd6 {[%clk 00:22:11]} {[%emt 00:00:29]} 42.
Kxh4 {[%clk 00:01:09]} {[%emt 00:01:25]} Ke6 {[%clk 00:22:23]} {[%emt
00:00:18]} 43. Kg5 {[%clk 00:25:21]} {[%emt 00:06:18]} Kf7 {[%clk 00:52:04]}
{[%emt 00:00:48]} 1/2-1/2

[Event "NJSK 2022 Meisjes C"]
[Site "Almelo, Netherlands"]
[Date "2022.05.06"]
[Round "6.9"]
[White "Hagen, Carlijn"]
[Black "Verbunt, Lisa"]
[Result "1-0"]
[TimeControl "90min/40moves + 30min + 30sec/move"]
[WhiteElo "783"]
[BlackElo "807"]

1. e4 {[%clk 01:30:57]} {[%emt 00:00:02]} e6 {[%clk 01:30:56]} {[%emt
00:00:05]} 2. d4 {[%clk 01:31:12]} {[%emt 00:00:15]} d5 {[%clk 01:31:20]}
{[%emt 00:00:05]} 3. e5 {[%clk 01:31:24]} {[%emt 00:00:18]} c5 {[%clk
01:31:34]} {[%emt 00:00:15]} 4. dxc5 {[%clk 01:30:57]} {[%emt 00:00:58]} Bxc5
{[%clk 01:31:16]} {[%emt 00:00:47]} 5. Nf3 {[%clk 01:30:54]} {[%emt 00:00:33]}
Nc6 {[%clk 01:30:47]} {[%emt 00:01:00]} 6. Bb5 {[%clk 01:30:30]} {[%emt
00:00:54]} Qb6 {[%clk 01:30:19]} {[%emt 00:00:57]} 7. Bxc6+ {[%clk 01:29:54]}
{[%emt 00:01:07]} bxc6 {[%clk 01:26:49]} {[%emt 00:04:00]} 8. O-O {[%clk
01:29:33]} {[%emt 00:00:51]} Ne7 {[%clk 01:26:49]} {[%emt 00:00:30]} 9. a3
{[%clk 01:29:02]} {[%emt 00:01:02]} a5 {[%clk 01:26:32]} {[%emt 00:00:46]} 10.
c3 {[%clk 01:27:15]} {[%emt 00:02:17]} Nf5 {[%clk 01:25:43]} {[%emt 00:01:17]}
11. Nbd2 {[%clk 01:22:02]} {[%emt 00:05:44]} Ba6 {[%clk 01:24:48]} {[%emt
00:01:25]} 12. c4 {[%clk 01:20:27]} {[%emt 00:02:05]} dxc4 {[%clk 01:24:35]}
{[%emt 00:00:43]} 13. Ne4 {[%clk 01:17:14]} {[%emt 00:03:43]} c3 {[%clk
01:24:19]} {[%emt 00:00:45]} 14. Nxc5 {[%clk 01:16:48]} {[%emt 00:00:56]} Bxf1
{[%clk 01:24:22]} {[%emt 00:00:27]} 15. Qd7+ {[%clk 01:16:46]} {[%emt
00:00:32]} Kf8 {[%clk 01:24:04]} {[%emt 00:00:48]} 16. Ng5 {[%clk 01:16:21]}
{[%emt 00:00:56]} Nh6 {[%clk 01:23:27]} {[%emt 00:01:07]} 17. Ngxe6+ {[%clk
01:09:19]} {[%emt 00:07:32]} Kg8 {[%clk 01:22:22]} {[%emt 00:01:35]} 18. Bxh6
{[%clk 01:09:04]} {[%emt 00:00:44]} gxh6 {[%clk 01:20:23]} {[%emt 00:02:29]} 19.
bxc3 {[%clk 01:07:59]} {[%emt 00:01:35]} fxe6 {[%clk 01:20:06]} {[%emt
00:00:47]} 20. Nxe6 {[%clk 01:08:01]} {[%emt 00:00:28]} Qa7 {[%clk 01:19:59]}
{[%emt 00:00:38]} 21. Qxa7 {[%clk 00:59:38]} {[%emt 00:08:53]} Rxa7 {[%clk
01:20:14]} {[%emt 00:00:15]} 22. Rxf1 {[%clk 01:00:00]} {[%emt 00:00:08]} Kf7
{[%clk 01:20:33]} {[%emt 00:00:11]} 23. Nd4 {[%clk 01:00:01]} {[%emt 00:00:28]}
c5 {[%clk 01:20:33]} {[%emt 00:00:31]} 24. Nb5 {[%clk 00:59:45]} {[%emt
00:00:46]} Re7 {[%clk 01:19:24]} {[%emt 00:01:39]} 25. f4 {[%clk 00:59:44]}
{[%emt 00:00:30]} Rd7 {[%clk 01:16:43]} {[%emt 00:03:12]} 26. Nd6+ {[%clk
00:59:19]} {[%emt 00:00:54]} Ke6 {[%clk 01:16:17]} {[%emt 00:00:57]} 27. Ne4
{[%clk 00:59:12]} {[%emt 00:00:36]} Rd5 {[%clk 01:15:25]} {[%emt 00:01:22]} 28.
c4 {[%clk 00:59:11]} {[%emt 00:00:31]} Rd4 {[%clk 01:15:27]} {[%emt 00:00:29]}
29. Nxc5+ {[%clk 00:58:56]} {[%emt 00:00:44]} Ke7 {[%clk 01:14:53]} {[%emt
00:01:04]} 30. Nb3 {[%clk 00:57:44]} {[%emt 00:01:42]} Rxc4 {[%clk 01:15:00]}
{[%emt 00:00:24]} 31. Nxa5 {[%clk 00:57:59]} {[%emt 00:00:15]} Ra4 {[%clk
01:15:01]} {[%emt 00:00:28]} 32. Nc6+ {[%clk 00:57:27]} {[%emt 00:01:02]} Kd7
{[%clk 01:15:15]} {[%emt 00:00:17]} 33. Nb4 {[%clk 00:57:22]} {[%emt 00:00:34]}
Rxa3 {[%clk 01:15:14]} {[%emt 00:00:31]} 34. Rd1+ {[%clk 00:57:31]} {[%emt
00:00:22]} Ke6 {[%clk 01:15:01]} {[%emt 00:00:44]} 35. Rd6+ {[%clk 00:57:26]}
{[%emt 00:00:33]} Kf5 {[%clk 01:15:13]} {[%emt 00:00:18]} 36. Rxh6 {[%clk
00:57:18]} {[%emt 00:00:39]} Kxf4 {[%clk 01:15:26]} {[%emt 00:00:17]} 37. e6
{[%clk 00:56:22]} {[%emt 00:01:25]} Rd8 {[%clk 01:15:04]} {[%emt 00:00:53]} 38.
g3+ {[%clk 00:55:45]} {[%emt 00:01:07]} Kf3 {[%clk 01:12:20]} {[%emt 00:03:14]}
39. Rf6+ {[%clk 00:54:18]} {[%emt 00:01:57]} Ke2 {[%clk 01:10:44]} {[%emt
00:02:06]} 40. Rf2+ {[%clk 00:54:01]} {[%emt 00:00:45]} Ke1 {[%clk 01:10:35]}
{[%emt 00:00:40]} 41. Nc2+ {[%clk 00:54:07]} {[%emt 00:00:25]} Kd1 {[%clk
01:10:42]} {[%emt 00:00:23]} 42. Nxa3 {[%clk 00:54:12]} {[%emt 00:00:25]} 1-0

[Event "NJSK 2022 Meisjes C"]
[Site "Almelo, Netherlands"]
[Date "2022.05.07"]
[Round "7.1"]
[White "Feng, Elysia"]
[Black "Damen, Josephine"]
[Result "1-0"]
[TimeControl "90min/40moves + 30min + 30sec/move"]
[WhiteElo "1641"]
[BlackElo "1600"]

1. e4 {[%clk 01:30:58]} {[%emt 00:00:02]} e5 {[%clk 01:30:54]} {[%emt
00:00:05]} 2. Nf3 {[%clk 01:31:24]} {[%emt 00:00:04]} Nc6 {[%clk 01:31:20]}
{[%emt 00:00:04]} 3. Bb5 {[%clk 01:31:20]} {[%emt 00:00:35]} a6 {[%clk
01:31:44]} {[%emt 00:00:06]} 4. Bxc6 {[%clk 01:31:45]} {[%emt 00:00:04]} dxc6
{[%clk 01:32:10]} {[%emt 00:00:05]} 5. O-O {[%clk 01:32:08]} {[%emt 00:00:07]}
Bg4 {[%clk 01:32:30]} {[%emt 00:00:10]} 6. h3 {[%clk 01:32:30]} {[%emt
00:00:08]} h5 {[%clk 01:32:55]} {[%emt 00:00:04]} 7. d3 {[%clk 01:32:58]}
{[%emt 00:00:03]} Qf6 {[%clk 01:33:18]} {[%emt 00:00:07]} 8. Nbd2 {[%clk
01:32:45]} {[%emt 00:00:43]} g5 {[%clk 01:33:29]} {[%emt 00:00:18]} 9. Re1
{[%clk 01:31:47]} {[%emt 00:01:29]} Bxf3 {[%clk 01:22:20]} {[%emt 00:11:38]} 10.
Qxf3 {[%clk 01:29:32]} {[%emt 00:02:46]} Qg6 {[%clk 01:09:53]} {[%emt
00:12:56]} 11. Qf5 {[%clk 01:26:10]} {[%emt 00:03:52]} Qxf5 {[%clk 01:06:19]}
{[%emt 00:04:04]} 12. exf5 {[%clk 01:26:33]} {[%emt 00:00:06]} f6 {[%clk
01:05:31]} {[%emt 00:01:19]} 13. d4 {[%clk 01:25:30]} {[%emt 00:01:34]} Bd6
{[%clk 01:04:32]} {[%emt 00:01:28]} 14. Nc4 {[%clk 01:24:42]} {[%emt 00:01:19]}
b5 {[%clk 01:03:34]} {[%emt 00:01:28]} 15. dxe5 {[%clk 01:24:51]} {[%emt
00:00:21]} O-O-O {[%clk 01:01:22]} {[%emt 00:02:40]} 16. Nxd6+ {[%clk
01:24:12]} {[%emt 00:01:09]} cxd6 {[%clk 01:01:21]} {[%emt 00:00:32]} 17. exf6
{[%clk 01:24:10]} {[%emt 00:00:33]} g4 {[%clk 00:59:27]} {[%emt 00:02:24]} 18.
hxg4 {[%clk 01:19:34]} {[%emt 00:05:05]} hxg4 {[%clk 00:59:22]} {[%emt
00:00:35]} 19. f7 {[%clk 01:19:56]} {[%emt 00:00:08]} Nh6 {[%clk 00:58:36]}
{[%emt 00:01:16]} 20. Bxh6 {[%clk 01:20:17]} {[%emt 00:00:08]} Rxh6 {[%clk
00:58:59]} {[%emt 00:00:08]} 21. Re6 {[%clk 01:18:15]} {[%emt 00:02:32]} Rh7
{[%clk 00:57:24]} {[%emt 00:02:05]} 22. Rf6 {[%clk 01:17:39]} {[%emt 00:01:06]}
Rf8 {[%clk 00:56:47]} {[%emt 00:01:06]} 23. Rd1 {[%clk 01:17:04]} {[%emt
00:01:05]} Rhxf7 {[%clk 00:55:09]} {[%emt 00:02:09]} 24. Rxf7 {[%clk 01:16:45]}
{[%emt 00:00:49]} Rxf7 {[%clk 00:55:33]} {[%emt 00:00:07]} 25. Rxd6 {[%clk
01:17:01]} {[%emt 00:00:14]} Kc7 {[%clk 00:55:51]} {[%emt 00:00:12]} 26. Rg6
{[%clk 01:17:06]} {[%emt 00:00:24]} Rxf5 {[%clk 00:56:06]} {[%emt 00:00:15]} 27.
Rxg4 {[%clk 01:17:20]} {[%emt 00:00:16]} Rd5 {[%clk 00:56:15]} {[%emt
00:00:21]} 28. Rg3 {[%clk 01:17:10]} {[%emt 00:00:41]} Rd1+ {[%clk 00:56:25]}
{[%emt 00:00:20]} 29. Kh2 {[%clk 01:16:51]} {[%emt 00:00:48]} Rd2 {[%clk
00:56:48]} {[%emt 00:00:06]} 30. Rc3 {[%clk 01:16:14]} {[%emt 00:01:08]} Rxf2
{[%clk 00:57:05]} {[%emt 00:00:13]} 31. Kg3 {[%clk 01:15:41]} {[%emt 00:01:03]}
Rf1 {[%clk 00:54:46]} {[%emt 00:02:49]} 32. Rf3 {[%clk 01:14:49]} {[%emt
00:01:22]} Ra1 {[%clk 00:53:01]} {[%emt 00:02:15]} 33. a3 {[%emt 00:01:55]} Ra2
{[%clk 00:52:45]} 34. Rb3 {[%clk 01:12:37]} {[%emt 00:02:02]} a5 {[%clk
00:51:55]} {[%emt 00:01:20]} 35. Kf4 {[%clk 01:12:32]} {[%emt 00:00:35]} a4
{[%clk 00:51:11]} {[%emt 00:01:15]} 36. Rb4 {[%clk 01:12:56]} {[%emt 00:00:07]}
Ra1 {[%clk 00:51:06]} {[%emt 00:00:35]} 37. c4 {[%clk 01:11:48]} {[%emt
00:01:38]} Kb6 {[%clk 00:47:55]} {[%emt 00:03:40]} 38. g4 {[%clk 01:10:54]}
{[%emt 00:01:24]} Kc5 {[%clk 00:47:39]} {[%emt 00:00:46]} 39. cxb5 {[%clk
01:11:08]} {[%emt 00:00:17]} cxb5 {[%clk 00:47:51]} {[%emt 00:00:17]} 40. Kf5
{[%clk 01:10:28]} {[%emt 00:01:10]} Rd1 {[%clk 00:47:08]} {[%emt 00:01:14]} 41.
g5 {[%clk 01:10:06]} {[%emt 00:00:52]} Rd5 {[%clk 00:47:23]} {[%emt 00:00:15]}
42. Kf6 {[%clk 01:10:11]} {[%emt 00:00:25]} Rd6+ {[%clk 00:47:29]} {[%emt
00:00:24]} 43. Kg7 {[%clk 01:10:20]} {[%emt 00:00:22]} Rd7+ {[%clk 00:47:41]}
{[%emt 00:00:18]} 44. Kh6 {[%clk 01:10:32]} {[%emt 00:00:18]} Rd4 {[%clk
00:45:00]} {[%emt 00:03:10]} 45. Rxd4 {[%clk 01:10:48]} {[%emt 00:00:14]} Kxd4
{[%clk 00:45:26]} {[%emt 00:00:05]} 46. g6 {[%clk 01:11:15]} {[%emt 00:00:04]}
Kc4 {[%clk 00:45:48]} {[%emt 00:00:07]} 47. g7 {[%clk 01:11:39]} {[%emt
00:00:06]} Kb3 {[%clk 00:46:08]} {[%emt 00:00:10]} 48. g8=Q+ {[%clk 01:12:01]}
{[%emt 00:00:08]} Kxb2 {[%clk 00:46:33]} {[%emt 00:00:04]} 49. Qg3 {[%clk
01:12:08]} {[%emt 00:00:24]} Ka2 {[%clk 00:46:46]} {[%emt 00:00:17]} 50. Qc3
{[%clk 01:12:13]} {[%emt 00:00:21]} Kb1 {[%clk 00:46:45]} {[%emt 00:00:35]} 51.
Qd2 {[%clk 01:12:24]} {[%emt 00:00:19]} b4 {[%clk 00:46:21]} {[%emt 00:00:55]}
52. axb4 {[%clk 01:12:27]} {[%emt 00:00:26]} a3 {[%clk 00:46:47]} {[%emt
00:00:04]} 53. b5 {[%clk 01:12:53]} {[%emt 00:00:04]} a2 {[%clk 00:47:11]}
{[%emt 00:00:06]} 54. Qxa2+ {[%clk 01:13:19]} {[%emt 00:00:03]} Kxa2 {[%emt
00:00:08]} 55. b6 {[%clk 01:13:45]} {[%emt 00:00:01]} 1-0